bitfinex/quotes_ETHUSD_20260313
["timestamp","ask_amount","ask_price","bid_price","bid_amount"]
[1773370413266,1.44867969,2104.5,2104.2,2.89009415]
[1773370414116,2.5774967,2104.6,2104.3,1.704]
[1773370414276,1.44867969,2104.5,2104.3,1.704]
[1773370414476,0.05907768,2104.5,2104.3,1.704]
[1773370414897,1.44867969,2104.5,2104.3,1.704]
[1773370415372,1.44867969,2104.5,2104.4,1.704]
[1773370416110,1.38960201,2104.6,2104.1,1.18815645]
[1773370416979,1.38960201,2104.6,2104.2,1.39228609]
[1773370417184,2.23862144,2105.0,2104.2,1.39228609]
[1773370417185,1.18781774,2104.7,2104.2,2.58033846]
[1773370417521,1.18781774,2104.7,2104.3,1.704]
[1773370417522,1.38960201,2104.6,2104.3,1.704]
[1773370417671,1.38960201,2104.6,2104.0,2.58155431]
[1773370417876,1.38960201,2104.6,2104.1,1.704]
[1773370418140,1.38960201,2104.6,2104.0,1.18926822]
[1773370418314,1.38960201,2104.6,2104.1,1.704]
[1773370418616,1.38960201,2104.6,2104.0,1.18930071]
[1773370418617,1.38960201,2104.6,2104.0,1.23682922]
[1773370418821,1.38960201,2104.6,2104.1,1.704]
[1773370419603,1.38960201,2104.4,2104.1,2.89214718]
[1773370419994,1.38960201,2104.4,2104.2,0.0011]
[1773370421687,2.5776331,2104.4,2104.2,0.0011]
[1773370421880,1.38960201,2104.3,2104.1,1.704]
[1773370422604,1.38960201,2104.3,2104.0,0.0011]
[1773370423309,1.38960201,2104.3,2104.0,1.18927075]
[1773370423513,1.38960201,2104.3,2104.0,0.0011]
[1773370423901,2.57765317,2104.3,2104.1,1.705]
[1773370424204,1.34355278,2104.5,2104.1,1.705]
[1773370426513,1.34355278,2104.5,2104.0,1.40178281]
[1773370426514,1.34355278,2104.4,2104.2,1.705]
[1773370429689,2.53154644,2104.4,2104.0,0.0011]
[1773370429916,1.34355278,2104.3,2104.0,0.0011]
[1773370431013,2.53160051,2104.3,2104.1,1.705]
[1773370431597,2.53160051,2104.3,2104.0,0.0011]
[1773370433011,2.53160051,2104.3,2104.1,1.706]
[1773370434136,2.6616253,2104.3,2104.1,1.706]
[1773370434836,1.47357757,2104.2,2103.8,0.1675718]
[1773370435138,1.47457757,2104.2,2103.8,0.1686718]
[1773370436420,1.47457757,2104.2,2103.9,1.706]
[1773370437437,1.18915382,2104.2,2103.9,1.706]
[1773370437637,1.47357757,2104.1,2103.9,1.706]
[1773370439844,2.66177819,2104.1,2103.8,0.1686718]
[1773370440743,1.47357757,2104.0,2103.8,0.1686718]
[1773370440952,1.47357757,2103.8,2103.4,1.45097655]
[1773370441320,1.99135757,2104.1,2103.2,1.18866489]
[1773370441321,1.18816812,2104.1,2103.6,1.45097655]
[1773370441559,1.47457757,2104.2,2103.6,1.45097655]
[1773370441727,0.001,2104.2,2103.7,1.18838237]
[1773370442051,1.47457757,2104.2,2103.8,1.706]
[1773370442251,1.47457757,2104.2,2103.9,1.706]
[1773370442548,0.001,2104.2,2103.7,1.18838237]
[1773370442717,1.47457757,2104.2,2103.8,1.706]
[1773370442921,1.47357757,2104.7,2103.8,3.15697655]
[1773370443123,0.80315695,2104.6,2103.8,1.45097655]
[1773370443348,1.47357757,2104.5,2103.9,1.706]
[1773370443923,1.47357757,2104.3,2103.9,1.1882694]
[1773370444253,1.47357757,2104.3,2104.0,1.706]
[1773370444754,1.47357757,2104.3,2103.5,1.45097655]
[1773370445468,1.47357757,2104.1,2103.5,1.45097655]
[1773370445670,1.47357757,2104.1,2103.3,2.63957415]
[1773370445956,1.47357757,2103.9,2103.4,1.45097655]
[1773370446153,1.18821292,2104.0,2102.9,1.18878178]
[1773370446154,1.47357757,2103.7,2102.9,1.18878178]
[1773370446660,1.47357757,2103.5,2102.6,0.7850859]
[1773370446835,0.80315695,2103.6,2102.3,1.19216597]
[1773370446836,1.47357757,2102.9,2102.3,1.19216597]
[1773370447040,1.47357757,2103.1,2102.3,1.19216597]
[1773370447354,1.47357757,2103.1,2102.4,0.05044965]
[1773370447650,1.47357757,2103.1,2102.3,1.1921667]
[1773370447835,1.47357757,2103.0,2102.4,1.705]
[1773370448036,1.47357757,2102.8,2102.3,0.003]
[1773370448275,1.47357757,2102.8,2102.4,1.705]
[1773370448476,1.47357757,2102.8,2102.3,0.003]
[1773370448774,1.47357757,2102.8,2102.5,1.705]
[1773370450469,1.47357757,2102.8,2102.3,0.003]
[1773370450773,1.47357757,2102.7,2102.3,0.003]
[1773370450952,1.47357757,2102.7,2102.4,1.705]
[1773370451358,1.47357757,2103.3,2102.5,0.06700735]
[1773370451551,1.47357757,2103.6,2102.8,0.06700735]
[1773370451752,6.76443488,2104.2,2103.1,0.06700735]
[1773370451753,1.47357757,2103.9,2103.1,0.06700735]
[1773370451957,1.47357757,2104.1,2103.3,2.07783039]
[1773370452155,0.23531338,2104.6,2103.7,0.06700735]
[1773370452355,0.23531338,2104.6,2103.6,2.01082304]
[1773370452356,0.23531338,2104.6,2104.0,0.06429391]
[1773370452558,1.47357757,2105.0,2104.1,1.25241277]
[1773370452559,1.47357757,2104.9,2104.1,1.25241277]
[1773370452849,1.47357757,2104.9,2104.2,1.695]
[1773370453581,1.47357757,2104.9,2103.6,1.565]
[1773370453889,1.47357757,2104.9,2103.8,0.06260341]
[1773370454554,1.47357757,2104.7,2104.0,1.18821292]
[1773370454954,4.75014491,2105.2,2104.0,1.18821292]
[1773370454955,1.47357757,2105.0,2104.1,0.0608683]
[1773370455279,2.66109954,2105.3,2104.3,3.2182643]
[1773370455485,2.66109954,2105.3,2103.8,0.05911998]
[1773370455486,1.47357757,2105.1,2103.8,0.05911998]
[1773370455778,1.18752197,2105.3,2104.0,0.05911998]
[1773370455779,1.47357757,2105.0,2104.0,0.05911998]
[1773370455983,4.74991687,2105.5,2104.5,2.06994302]
[1773370455984,1.47357757,2105.5,2104.5,2.06994302]
[1773370456160,1.47357757,2105.4,2104.2,0.05911998]
[1773370456366,1.47357757,2105.3,2104.6,1.666]
[1773370456787,1.47357757,2105.3,2104.7,1.667]
[1773370456788,1.47357757,2105.1,2104.7,1.667]
[1773370456958,1.47357757,2105.1,2104.2,1.18809489]
[1773370457875,1.47357757,2105.1,2104.3,0.05560683]
[1773370458081,1.18749861,2105.3,2104.4,1.671]
[1773370458382,1.18749861,2105.3,2104.5,0.05560683]
[1773370458581,1.18749861,2105.3,2104.2,3.19891793]
[1773370458582,1.47357757,2105.2,2104.2,1.24193493]
[1773370458782,1.47357757,2104.8,2104.3,1.673]
[1773370458960,1.47357757,2104.8,2104.4,1.674]
[1773370459161,1.47357757,2104.8,2103.8,1.18832588]
[1773370460064,1.47357757,2104.8,2104.0,0.0011]
[1773370460259,1.47457757,2104.8,2104.0,0.0011]
[1773370460461,1.47357757,2104.6,2104.0,0.0011]
[1773370460676,1.18793062,2104.5,2104.0,0.0011]
[1773370460881,1.46347905,2104.4,2104.1,1.66]
[1773370461162,1.46347905,2104.4,2103.5,1.18955739]
[1773370461357,1.46347905,2104.3,2103.1,1.2384891]
[1773370462872,1.46347905,2104.1,2103.2,1.667]
[1773370465407,2.65169197,2104.0,2103.3,1.18860837]
[1773370466525,1.46347905,2104.0,2103.3,1.18860837]
[1773370466922,1.46347905,2104.0,2103.2,2.85561926]
[1773370467533,2.65172784,2104.0,2103.3,0.03892803]
[1773370467713,1.46347905,2103.9,2103.4,1.679]
[1773370469710,2.65177762,2103.9,2103.4,2.86751649]
[1773370470107,1.46347905,2103.8,2103.1,1.18872141]
[1773370470308,1.46347905,2103.8,2103.5,1.684]
[1773370470812,1.46347905,2103.8,2103.0,1.22399143]
[1773370471326,1.46347905,2103.8,2103.0,1.18874499]
[1773370471633,2.65186142,2103.7,2102.9,0.03154388]
[1773370471836,1.46347905,2103.6,2103.0,1.686]
[1773370472047,4.75352949,2103.8,2103.0,1.686]
[1773370472048,1.18836832,2103.8,2103.0,1.686]
[1773370472220,2.65175742,2103.9,2103.1,0.03154388]
[1773370472429,1.46347905,2103.9,2103.1,0.03154388]
[1773370473341,2.65174987,2103.9,2103.1,0.03154388]
[1773370473542,2.65174987,2103.9,2103.2,1.688]
[1773370473738,2.65174987,2103.9,2103.3,1.21642716]
[1773370473739,1.46347905,2103.9,2103.3,1.21642716]
[1773370475226,1.46347905,2103.9,2103.4,1.689]
[1773370475829,1.46347905,2103.9,2103.5,1.18849536]
[1773370477624,1.46347905,2104.4,2103.6,0.02030611]
[1773370477831,2.65151729,2104.4,2103.7,1.20868848]
[1773370479032,1.46347905,2104.4,2103.8,0.01841211]
[1773370479858,1.46447905,2104.6,2104.0,0.0165166]
[1773370480028,2.65235514,2104.6,2104.1,1.693]
[1773370480229,0.001,2104.6,2104.1,1.7095166]
[1773370480449,1.46347905,2104.5,2104.1,1.693]
[1773370481957,2.65146155,2104.5,2104.1,1.693]
[1773370482552,2.65146155,2104.5,2104.1,2.88115022]
[1773370482553,1.46347905,2104.5,2104.1,2.88115022]
[1773370482968,0.001,2104.6,2104.1,2.89195711]
[1773370483339,1.46347905,2104.5,2104.1,1.693]
[1773370483570,1.18891644,2104.6,2104.1,2.88114367]
[1773370483774,0.001,2104.6,2104.1,2.89098068]
[1773370484069,0.001,2104.6,2104.3,1.18804352]
[1773370484567,0.001,2104.6,2104.4,1.695]
[1773370484948,0.001,2104.8,2104.4,1.695]
[1773370485142,1.18876666,2104.8,2104.4,1.695]
[1773370485966,0.001,2104.8,2104.4,1.69997239]
[1773370486170,0.001,2104.8,2104.5,1.18793062]
[1773370486989,0.001,2104.8,2104.4,1.695]
[1773370487285,1.46497905,2104.8,2104.5,1.696]
[1773370488094,1.46497905,2104.8,2104.6,1.696]
[1773370488496,2.65275218,2104.8,2104.6,1.696]
[1773370488849,1.46497905,2104.8,2104.6,1.696]
[1773370489050,0.001,2104.8,2104.6,1.696]
[1773370489479,1.46397905,2105.1,2104.6,1.696]
[1773370490656,1.46397905,2105.1,2103.7,8.29682761]
[1773370490657,1.46397905,2104.9,2103.7,8.29682761]
[1773370490857,1.46397905,2104.9,2103.7,4.75351161]
[1773370491059,1.46397905,2104.9,2103.8,6.099389]
[1773370491581,1.46397905,2104.9,2103.8,8.10608898]
[1773370491780,1.46397905,2104.9,2103.9,8.753589]
[1773370492092,1.46397905,2104.9,2104.1,2.00669998]
[1773370492377,2.65159958,2105.1,2104.2,4.471404]
[1773370492579,1.46397905,2105.1,2104.2,4.471404]
[1773370492746,1.46397905,2105.1,2104.3,1.18804352]
[1773370493151,0.001,2105.6,2104.4,13.22997598]
[1773370493375,1.46397905,2105.4,2104.5,1.697]
[1773370494582,1.46397905,2105.3,2104.3,1.18804352]
[1773370494791,1.46397905,2105.1,2104.4,2.88497847]
[1773370495893,1.46397905,2105.1,2104.4,2.88494491]
[1773370497291,2.65161422,2105.1,2104.4,2.88494491]
[1773370497467,2.65157379,2105.1,2104.4,2.88494491]
[1773370497668,1.1875939,2105.1,2104.4,4.89164489]
[1773370498163,1.46397905,2105.0,2104.5,1.698]
[1773370498368,1.1875939,2105.1,2104.5,1.698]
[1773370498786,1.46397905,2105.4,2104.5,1.698]
[1773370499497,1.46397905,2105.2,2104.5,2.8858958]
[1773370501498,1.46397905,2105.2,2104.6,0.0011]
[1773370501700,1.18759203,2105.1,2104.6,0.0011]
[1773370501904,1.18759203,2105.1,2104.7,1.698]
[1773370501905,1.46497905,2104.9,2104.7,1.698]
[1773370502100,1.46497905,2104.9,2104.6,0.0011]
[1773370502600,1.46497905,2104.9,2104.4,0.0011]
[1773370503511,1.46497905,2104.9,2104.5,1.694]
[1773370504180,1.46342905,2104.7,2104.4,0.0011]
[1773370505318,1.46342905,2104.7,2104.5,1.695]
[1773370506395,2.65125697,2104.7,2104.5,1.695]
[1773370507193,2.65125476,2104.7,2104.5,1.695]
[1773370507884,1.18782571,2104.7,2104.5,1.695]
[1773370508800,4.75107029,2104.8,2104.5,1.695]
[1773370509012,2.65217367,2104.9,2104.5,1.695]
[1773370509205,0.001,2104.9,2104.5,2.88290984]
[1773370509679,2.65213977,2104.9,2104.5,2.88290984]
[1773370510405,0.001,2104.9,2104.5,2.88290984]
[1773370510787,0.001,2104.9,2104.5,1.695]
[1773370510788,1.46442905,2104.9,2104.5,1.695]
[1773370510988,1.46442905,2104.9,2104.5,2.88291709]
[1773370511301,0.001,2104.9,2104.5,2.88291709]
[1773370511811,1.46442905,2104.9,2104.6,1.696]
[1773370512113,1.46442905,2104.9,2104.4,1.18906536]
[1773370512114,1.46442905,2104.9,2104.7,1.696]
[1773370512729,0.001,2104.9,2104.7,1.696]
[1773370512925,0.001,2104.9,2104.7,2.88381772]
[1773370515422,0.001,2104.9,2104.8,1.697]
[1773370517123,0.001,2104.9,2104.7,1.18781501]
[1773370517289,0.001,2104.9,2104.8,1.697]
[1773370519300,0.001,2104.9,2104.8,1.698]
[1773370519609,1.46442905,2104.9,2104.4,0.0011]
[1773370520811,1.46442905,2104.9,2104.5,1.698]
[1773370521303,1.46442905,2104.9,2104.4,0.0011]
[1773370521715,1.46342905,2104.7,2104.4,0.0011]
[1773370522209,1.46342905,2104.7,2104.4,0.0022]
[1773370522423,2.65119035,2104.8,2104.5,1.699]
[1773370522712,1.46342905,2104.7,2104.5,1.699]
[1773370523216,1.46342905,2104.7,2104.4,0.0011]
[1773370524195,1.46342905,2104.5,2104.4,0.0011]
[1773370524404,1.46342905,2104.5,2104.1,0.0011]
[1773370524609,1.46342905,2104.5,2104.2,1.7001]
[1773370526717,1.46342905,2104.7,2104.2,1.7001]
[1773370528692,1.46342905,2104.5,2104.4,0.0011]
[1773370529219,1.18787418,2104.6,2104.4,0.0011]
[1773370529527,1.18886054,2104.7,2104.4,0.0022]
[1773370529816,0.001,2104.9,2104.4,0.0011]
[1773370530590,1.18872929,2104.9,2104.4,0.0011]
[1773370530791,1.46342905,2105.4,2104.4,0.0011]
[1773370531012,1.46342905,2105.3,2104.5,10.689842]
[1773370531819,1.46342905,2105.3,2104.5,8.52453]
[1773370532193,4.75161349,2105.2,2104.5,8.52453]
[1773370532394,4.75161349,2105.2,2104.6,0.04357128]
[1773370532606,4.75161349,2105.1,2104.6,0.04357128]
[1773370532806,4.75161349,2105.3,2104.8,0.04357128]
[1773370533012,1.18834937,2105.6,2105.0,0.04357128]
[1773370533712,2.65177842,2105.6,2105.0,0.04357128]
[1773370534108,4.75161349,2105.5,2105.0,0.04357128]
[1773370534305,5.93996286,2105.6,2105.0,0.04357128]
[1773370534510,4.75161349,2105.5,2105.0,0.04357128]
[1773370534710,7.40246423,2105.5,2105.0,1.23120833]
[1773370534917,7.40246423,2105.5,2105.0,1.18764145]
[1773370535525,5.93903518,2105.5,2105.0,1.22261647]
[1773370536307,4.75161349,2105.5,2105.0,1.22261647]
[1773370536621,4.75161349,2105.5,2105.1,0.0321313]
[1773370536828,6.21504254,2105.5,2105.2,1.18753562]
[1773370537013,6.21504254,2105.5,2105.0,4.75049771]
[1773370537505,4.75161349,2105.5,2105.0,4.77978099]
[1773370537708,4.75161349,2105.5,2105.1,0.02928328]
[1773370537921,4.75161349,2105.5,2105.0,1.18764845]
[1773370538301,2.65177476,2105.6,2105.0,1.18764845]
[1773370538625,4.75161349,2105.5,2105.0,1.18764845]
[1773370538828,4.75161349,2105.5,2105.0,1.21409035]
[1773370539128,4.75161349,2105.5,2105.1,1.697]
[1773370540029,4.75161349,2105.5,2105.2,0.02360689]
[1773370540326,0.001,2105.6,2105.2,0.02360689]
[1773370540526,4.75261349,2105.6,2105.2,0.02360689]
[1773370541630,4.75261349,2105.6,2105.3,1.18747921]
[1773370541826,6.21604254,2105.6,2105.4,1.697]
[1773370543133,4.75261349,2105.6,2105.4,1.697]
[1773370544006,0.001,2105.6,2105.4,2.89390911]
[1773370545933,0.001,2105.6,2105.5,0.00674883]
[1773370546512,0.001,2105.6,2105.4,2.8843762]
[1773370546911,4.75261349,2105.6,2105.4,2.8843762]
[1773370547110,1e-08,2105.6,2105.4,2.8843762]
[1773370547510,1e-08,2105.6,2105.4,2.8844228]
[1773370548029,1.46342905,2105.8,2105.4,2.8844228]
[1773370548218,1.18815954,2105.9,2105.4,2.8844228]
[1773370548419,1.18815954,2105.9,2105.4,2.88560221]
[1773370549034,1.18815954,2105.9,2105.4,2.8844228]
[1773370549206,1.18815954,2105.9,2105.4,3.02334145]
[1773370549207,0.001,2105.9,2105.4,3.02334145]
[1773370549535,1.46342905,2105.8,2105.4,2.88440359]
[1773370551648,1.18725119,2105.8,2105.4,1.697]
[1773370551838,1.46342905,2105.7,2105.4,2.88441785]
[1773370552244,1.46342905,2105.7,2105.3,1.1874246]
[1773370552542,1.46342905,2105.7,2105.4,1.7]
[1773370553317,1.46342905,2105.7,2105.2,1.3151167]
[1773370553514,1.46342905,2105.7,2105.3,1.7]
[1773370553715,1.46342905,2105.5,2105.3,1.7]
[1773370554426,1.46342905,2105.5,2105.4,0.0011]
[1773370554625,1.46342905,2105.5,2105.2,0.0011]
[1773370555948,1.46342905,2105.3,2105.2,0.0011]
[1773370556125,1.46342905,2105.3,2105.0,0.0011]
[1773370556330,1.46342905,2105.3,2104.8,1.18775875]
[1773370556530,1.46342905,2105.3,2104.7,1.18887555]
[1773370557342,1.46342905,2105.3,2104.8,1.701]
[1773370557915,1.46342905,2105.1,2104.8,2.88872634]
[1773370558118,1.46342905,2105.3,2104.9,1.18770487]
[1773370560345,2.65091273,2105.3,2104.9,1.18770487]
[1773370560753,1.46342905,2105.3,2105.0,0.03111052]
[1773370560950,1.46342905,2105.5,2105.0,0.10212771]
[1773370561122,0.001,2105.6,2105.0,0.10212771]
[1773370561951,1.46342905,2105.5,2105.0,0.10212771]
[1773370562254,1.46342905,2105.5,2105.1,2.88957529]
[1773370562627,1.46342905,2105.4,2104.9,1.18766346]
[1773370562825,1.46342905,2105.4,2105.2,1.702]
[1773370563150,2.65175913,2105.6,2105.2,1.702]
[1773370563359,1.46342905,2105.5,2105.2,1.702]
[1773370563654,1.46342905,2105.5,2104.7,1.18890058]
[1773370564449,1.46342905,2105.3,2104.7,0.0011]
[1773370564852,1.46342905,2105.3,2104.8,1.702]
[1773370567129,1.46342905,2105.1,2104.9,0.0011]
[1773370567651,1.46342905,2105.1,2105.0,1.702]
[1773370568160,1.46342905,2105.1,2104.9,0.0011]
[1773370569458,2.65102676,2105.1,2104.9,0.0011]
[1773370569627,1.46342905,2105.0,2104.9,0.0011]
[1773370571261,1.46342905,2105.0,2104.9,1.7031]
[1773370571763,1.46342905,2105.2,2104.9,2.89075184]
[1773370572125,1.46342905,2105.4,2104.9,2.89075184]
[1773370572862,1.46342905,2105.4,2104.9,1.7031]
[1773370573065,1.46342905,2105.4,2105.0,1.702]
[1773370573660,2.65085654,2105.4,2105.0,2.88959364]
[1773370573840,1.46342905,2105.4,2105.0,2.88959364]
[1773370574158,2.65085921,2105.4,2105.0,2.88959364]
[1773370574563,1.46342905,2105.4,2105.0,2.88959364]
[1773370574762,2.65085664,2105.4,2105.0,2.88959364]
[1773370575064,1.46342905,2105.3,2105.0,1.702]
[1773370575662,2.65096359,2105.3,2105.0,1.702]
[1773370576033,1.46342905,2105.2,2104.9,0.0011]
[1773370577546,1.46342905,2105.2,2105.0,1.697]
[1773370577748,2.65100694,2105.2,2105.0,1.697]
[1773370577944,2.65100694,2105.2,2104.9,0.0011]
[1773370577945,1.46342905,2105.1,2104.9,0.0011]
[1773370579267,1.46342905,2105.1,2104.7,0.0011]
[1773370579769,2.6510775,2105.0,2104.9,0.0011]
[1773370581053,1.46342905,2105.0,2104.9,1.6991]
[1773370581462,0.001,2105.1,2104.9,1.6991]
[1773370581663,1.46442905,2105.6,2105.1,0.04014858]
[1773370581865,0.001,2105.6,2105.2,1.2276842]
[1773370582170,1.18814115,2105.9,2105.3,0.04014858]
[1773370582363,0.001,2105.9,2105.3,0.04014858]
[1773370582779,1.1881493,2105.9,2105.3,0.04014858]
[1773370583473,1.1881493,2105.9,2105.4,1.698]
[1773370583474,1.46342905,2105.8,2105.4,1.698]
[1773370584179,1.46342905,2105.8,2105.4,2.88538739]
[1773370584350,1.1881493,2105.9,2105.4,2.88538739]
[1773370584877,1.1881493,2105.9,2105.4,2.91697449]
[1773370587283,1.1881493,2105.9,2105.5,0.02586239]
[1773370587575,2.65157835,2105.9,2105.4,2.88538739]
[1773370587746,2.65157835,2105.9,2105.4,2.90841206]
[1773370589177,1.1881493,2105.9,2105.5,0.02018108]
[1773370589480,0.001,2105.9,2105.5,1.20752633]
[1773370589980,1.46342905,2105.8,2105.4,2.88537863]
[1773370591981,1.46342905,2105.8,2105.1,1.18754669]
[1773370591982,1.46342905,2105.7,2105.1,1.18754669]
[1773370592155,1.46342905,2105.7,2105.1,1.18864669]
[1773370592483,0.001,2105.6,2105.2,0.00887561]
[1773370593182,0.001,2105.6,2105.3,1.701]
[1773370593380,1.46442905,2105.6,2105.1,1.18864669]
[1773370593574,1.46442905,2105.6,2105.2,1.701]
[1773370593771,0.001,2105.6,2105.3,0.00606902]
[1773370593965,0.001,2105.6,2105.3,1.19354823]
[1773370594169,0.001,2105.6,2105.3,1.18747921]
[1773370595190,1.46442905,2105.6,2105.3,1.18747921]
[1773370595387,1.46442905,2105.6,2105.4,1.701]
[1773370596573,1.46342905,2105.5,2105.2,1.18749279]
[1773370596865,1.46342905,2105.5,2105.3,1.702]
[1773370597074,1.46342905,2105.5,2105.1,1.18867735]
[1773370597389,1.46342905,2105.5,2105.2,1.702]
[1773370598664,1.46342905,2105.5,2105.2,2.8895336]
[1773370599497,1.46442905,2105.6,2105.2,1.702]
[1773370599798,1.46342905,2105.5,2105.3,1.702]
[1773370600378,1.46342905,2105.5,2105.1,1.1886483]
[1773370600587,1.46342905,2105.5,2105.2,2.89052393]
[1773370600901,1.46342905,2105.4,2105.2,1.703]
[1773370603179,1.46342905,2105.3,2105.1,0.0011]
[1773370604496,1.46342905,2105.3,2105.2,1.703]
[1773370605401,1.46342905,2105.2,2105.1,0.0011]
[1773370606600,1.46342905,2105.2,2105.1,1.7051]
[1773370607193,2.65096467,2105.2,2105.1,1.7051]
[1773370607399,1.46342905,2105.2,2105.1,1.7051]
[1773370608001,2.65096467,2105.2,2105.1,1.7051]
[1773370609406,1.39756115,2105.1,2104.9,0.0011]
[1773370610704,1.39756115,2105.1,2105.0,1.704]
[1773370611802,2.58515318,2105.1,2105.0,1.704]
[1773370613107,1.39756115,2105.1,2105.0,1.704]
[1773370614284,2.58515318,2105.1,2105.0,1.704]
[1773370614484,1.39756115,2105.1,2105.0,1.704]
[1773370615311,1.31949625,2105.3,2105.0,2.89164845]
[1773370615491,0.001,2105.4,2105.0,3.46283143]
[1773370616911,2.50686434,2105.5,2105.0,2.89164845]
[1773370616912,1.31949625,2105.5,2105.0,2.89164845]
[1773370617409,1.31949625,2105.5,2105.0,3.45917847]
[1773370617604,1.31949625,2105.5,2105.1,0.0011]
[1773370618887,2.50686553,2105.5,2105.1,0.0011]
[1773370620234,1.31949625,2105.4,2105.1,0.0011]
[1773370620512,1.32049625,2105.6,2105.1,0.55814373]
[1773370620726,0.001,2105.6,2105.4,0.55704373]
[1773370620896,0.001,2105.6,2105.5,1.706]
[1773370622004,1.32049625,2105.6,2105.5,1.706]
[1773370622719,0.001,2105.6,2105.5,1.706]
[1773370622928,0.001,2105.6,2105.5,2.89336642]
[1773370623286,0.001,2105.6,2105.5,1.706]
[1773370624002,0.001,2105.6,2105.5,2.89336642]
[1773370624919,1.32049625,2105.9,2105.5,3.69562193]
[1773370625090,1.32049625,2105.9,2105.5,2.89336642]
[1773370625290,1.31949625,2105.8,2105.5,1.706]
[1773370625690,1.31949625,2105.8,2105.5,2.89331913]
[1773370625896,1.32049625,2105.9,2105.5,3.43731263]
[1773370626203,0.001,2105.9,2105.6,0.5439935]
[1773370628219,1.31949625,2105.8,2105.1,0.0011]
[1773370628520,1.31949625,2105.8,2105.1,1.72497547]
[1773370628721,1.31949625,2105.6,2105.1,1.72497547]
[1773370629122,1.31949625,2105.6,2105.1,1.72497576]
[1773370629499,1.31949625,2105.6,2105.2,1.707]
[1773370630107,1.31949625,2105.6,2105.1,1.72497576]
[1773370630431,1.32049625,2105.9,2105.3,0.53227022]
[1773370630724,1.32049625,2105.9,2105.5,1.98962193]
[1773370630725,0.001,2105.6,2105.5,1.98962193]
[1773370630901,1.32049625,2105.9,2105.5,1.98962193]
[1773370632722,1.32049625,2105.9,2105.5,2.51573214]
[1773370632919,0.001,2105.9,2105.5,2.51573214]
[1773370633124,0.001,2105.9,2105.6,1.708]
[1773370634034,0.001,2105.9,2105.6,2.23156762]
[1773370634837,0.001,2105.9,2105.6,3.41885384]
[1773370638238,0.001,2105.9,2105.7,0.50717185]
[1773370638462,0.001,2105.9,2105.8,0.50313281]
[1773370638643,1.31949625,2106.4,2106.1,0.80225551]
[1773370638835,1.31949625,2106.4,2106.2,1.71]
[1773370639534,1.18680817,2106.5,2106.2,1.71]
[1773370639966,1.31949625,2106.4,2106.2,1.71]
[1773370640119,1.31949625,2106.4,2106.3,1.71]
[1773370640318,1.31949625,2106.4,2105.7,0.80225551]
[1773370641031,1.31949625,2106.4,2105.5,1.98959991]
[1773370641447,1.37760896,2106.2,2105.6,1.711]
[1773370643549,1.37760896,2106.0,2105.6,1.711]
[1773370643845,1.37760896,2106.0,2105.4,3.68479464]
[1773370644061,1.37760896,2106.0,2105.5,1.711]
[1773370644424,1.37760896,2106.0,2105.5,2.18901819]
[1773370644627,1.37760896,2106.0,2105.5,1.711]
[1773370645368,1.37760896,2106.0,2105.9,0.001]
[1773370645856,2.56469348,2106.0,2105.9,0.001]
[1773370646223,2.56469348,2106.0,2105.9,1.713]
[1773370647233,1.37760896,2105.9,2105.6,1.18831003]
[1773370647643,1.37760896,2105.9,2105.6,0.001]
[1773370647842,1.18718464,2105.9,2105.3,1.18853381]
[1773370648045,1.37760896,2105.8,2105.3,0.0011]
[1773370648447,1.37760896,2105.8,2105.4,1.712]
[1773370648647,1.37760896,2105.8,2105.4,2.17473381]
[1773370650154,1.37760896,2105.8,2105.5,1.18736642]
[1773370650453,1.37760896,2106.1,2105.6,0.45522543]
[1773370651557,1.37760896,2106.1,2105.7,1.713]
[1773370652057,1.37760896,2106.2,2105.7,2.16448901]
[1773370653485,1.37760896,2106.1,2105.7,2.16448901]
[1773370653754,1.37760896,2106.1,2105.8,1.714]
[1773370654143,1.37760896,2106.1,2105.4,1.63146204]
[1773370655566,1.37760896,2105.9,2105.3,1.18857158]
[1773370655768,1.37760896,2105.9,2105.5,1.714]
[1773370656071,1.37760896,2105.9,2105.3,0.0011]
[1773370656862,1.37760896,2105.8,2105.3,0.0011]
[1773370657282,1.37760896,2105.8,2105.1,2.62997826]
[1773370657456,1.37760896,2105.8,2105.4,1.714]
[1773370657832,1.37760896,2105.6,2105.4,1.714]
[1773370658030,1.37760896,2105.6,2105.1,2.62997826]
[1773370659882,1.37760896,2105.6,2105.3,0.0011]
[1773370660185,1.37760896,2105.4,2105.3,0.0011]
[1773370661284,1.37760896,2105.4,2105.1,2.62997826]
[1773370661968,2.56508817,2105.3,2105.1,2.62997826]
[1773370662774,1.37760896,2105.2,2105.1,2.62997826]
[1773370662953,1.37760896,2105.2,2105.1,4.34397826]
[1773370663976,2.56514458,2105.2,2105.1,4.23206216]
[1773370664175,2.56514458,2105.2,2105.0,0.0011]
[1773370664176,1.24959824,2105.1,2105.0,0.0011]
[1773370664697,2.4371218,2105.3,2104.8,1.59479776]
[1773370664991,2.4371218,2105.3,2104.8,0.40705666]
[1773370665166,2.4371218,2105.3,2104.8,0.0011]
[1773370665167,1.24959824,2105.2,2104.8,0.0011]
[1773370665986,1.24959824,2105.2,2104.9,1.714]
[1773370666889,2.43718361,2105.2,2104.9,1.714]
[1773370668088,2.43718361,2105.2,2105.0,1.714]
[1773370668291,4.74946744,2105.5,2105.0,1.714]
[1773370668292,1.24959824,2105.7,2105.0,2.18706456]
[1773370668457,1.24959824,2105.7,2105.0,0.47306456]
[1773370668662,1.24959824,2105.7,2105.1,1.714]
[1773370669467,1.18731003,2105.6,2105.1,1.714]
[1773370669681,1.24959824,2105.5,2105.1,1.714]
[1773370670095,1.24959824,2105.5,2104.8,1.65832848]
[1773370670393,1.24959824,2105.5,2104.8,0.0011]
[1773370670962,1.24959824,2105.5,2105.3,0.0011]
[1773370671162,1.24959824,2105.5,2104.8,0.0011]
[1773370671795,1.34128969,2105.3,2105.0,0.0011]
[1773370673088,1.34128969,2105.3,2104.8,0.0011]
[1773370673682,1.34128969,2105.1,2104.8,0.0011]
[1773370675017,1.34128969,2105.1,2104.9,1.714]
[1773370675182,1.34128969,2105.1,2105.0,1.714]
[1773370676007,2.52888172,2105.1,2105.0,1.714]
[1773370676217,8.76060489,2106.0,2104.8,0.0011]
[1773370676218,4.74927406,2105.6,2104.8,1.18885695]